bitfinex-derivatives/quotes_SOLF0:USTF0_20250331
["timestamp","ask_amount","ask_price","bid_price","bid_amount"]
[1743428050423,0.05385063,124.02,124.0,0.05526484]
[1743428051021,38.07523722,124.01,123.89,38.07523722]
[1743428051333,38.07523722,124.03,123.91,99.05523722]
[1743428051532,8.0686,123.96,123.92,8.0709]
[1743428051732,38.07523722,124.01,123.91,99.05523722]
[1743428051928,8.0682,123.97,123.93,8.0704]
[1743428052227,0.05963885,123.97,123.95,0.06178083]
[1743428052629,8.0685,123.96,123.95,0.06178083]
[1743428057933,8.0714,123.92,123.88,60.04]
[1743428058237,2.7617,123.99,123.88,60.0]
[1743428058441,8.0693,123.95,123.89,38.07523722]
[1743428058636,2.7617,123.99,123.89,38.07523722]
[1743428059139,0.0590315,123.95,123.93,0.05713628]
[1743428060740,8.0698,123.94,123.93,0.05713628]
[1743428061139,0.0590315,123.95,123.93,0.05713628]
[1743428061944,0.0590315,123.95,123.93,8.12733628]
[1743428062139,0.0590315,123.95,123.93,0.05713628]
[1743428064441,8.1285315,123.95,123.93,0.05713628]
[1743428064834,0.0590315,123.95,123.93,0.05713628]
[1743428065041,8.1285315,123.95,123.93,0.05713628]
[1743428065338,0.0590315,123.95,123.93,0.05713628]
[1743428065534,0.0590315,123.95,123.93,58.73713628]
[1743428067443,3.0063,124.02,123.93,58.73713628]
[1743428067741,3.0063,124.02,123.93,58.68]
[1743428067944,3.0063,124.02,123.93,96.75523722]
[1743428068142,3.0063,124.02,123.94,3.0297]
[1743428068542,0.05092188,123.99,123.97,0.05550033]
[1743428068747,2.8902,124.06,123.97,38.13073755]
[1743428068947,8.0636,124.04,123.99,38.07523722]
[1743428069247,296.172,124.1,123.99,38.07523722]
[1743428069441,8.0618,124.07,124.01,38.07523722]
[1743428069643,43.06131425,124.12,124.03,38.07523722]
[1743428069939,0.06165484,124.05,124.03,0.05149643]
[1743428070346,38.07523722,124.05,123.95,21.58666766]
[1743428070546,38.13470082,124.05,123.96,58.56]
[1743428070747,2.9577,124.06,123.99,0.05119443]
[1743428070941,38.07523722,124.05,123.99,0.05119443]
[1743428071136,8.0659,124.0,123.99,0.05119443]
[1743428071342,0.05763378,124.02,123.99,0.05119443]
[1743428071740,8.0659,124.0,123.99,0.05119443]
[1743428071940,0.05763378,124.02,123.99,0.05119443]
[1743428072135,8.0653,124.01,123.99,0.05119443]
[1743428072341,0.05763378,124.02,123.99,0.05119443]
[1743428073445,8.0659,124.0,123.99,0.05119443]
[1743428076448,8.0705,123.93,123.92,67.477]
[1743428076642,8.0705,123.93,123.92,8.757]
[1743428077344,8.0705,123.93,123.88,686.31523722]
[1743428077545,38.07523722,123.99,123.89,61.262]
[1743428077749,0.05368461,123.92,123.89,61.32171613]
[1743428077949,41.09143722,124.01,123.89,61.262]
[1743428078146,0.05888975,123.92,123.89,61.3136276]
[1743428078351,8.0701,123.94,123.89,61.262]
[1743428078552,41.09143722,124.01,123.9,38.07523722]
[1743428078744,8.0702,123.94,123.9,96.05523722]
[1743428079050,41.09143722,124.01,123.9,96.05523722]
[1743428079247,41.09143722,124.01,123.9,57.98]
[1743428079453,41.09143722,124.01,123.89,3.062]
[1743428079748,0.06065133,123.96,123.94,0.06144279]
[1743428079948,41.09143722,124.01,123.94,0.06144279]
[1743428080146,0.06069686,123.96,123.94,0.06144279]
[1743428080347,41.09143722,124.01,123.94,0.06144279]
[1743428080550,0.06011464,123.96,123.94,0.06144279]
[1743428080745,41.09143722,124.01,123.94,0.06144279]
[1743428081051,0.06140844,123.96,123.94,0.06144279]
[1743428081248,8.0692,123.95,123.94,0.06144279]
[1743428084750,8.06,123.95,123.82,456.16214868]
[1743428084950,38.07523722,123.92,123.83,90.77540138]
[1743428085153,8.0748,123.87,123.83,90.77540138]
[1743428085351,38.07523722,123.9,123.84,8.0763]
[1743428085653,38.07523722,123.92,123.83,90.77540138]
[1743428085952,0.05415036,123.88,123.86,0.05342211]
[1743428086749,38.12938758,123.88,123.8,87.92320138]
[1743428086948,38.07523722,123.84,123.8,87.92320138]
[1743428087158,38.07523722,123.82,123.8,74.82290138]
[1743428087456,8.0783,123.81,123.8,62.58970138]
[1743428087657,38.07523722,123.9,123.8,62.58970138]
[1743428087852,290.36,123.91,123.8,65.42400138]
[1743428087853,8.0774,123.83,123.8,65.42400138]
[1743428088153,38.13634018,123.86,123.84,9.055e-05]
[1743428088356,8.0783,123.81,123.8,62.58970138]
[1743428090159,0.05740683,123.82,123.79,0.05339955]
[1743428090458,38.13264405,123.82,123.79,0.05339955]
[1743428091157,8.0789,123.8,123.79,0.05339955]
[1743428091655,0.05740683,123.82,123.79,0.05339955]
[1743428092053,38.07523722,123.9,123.79,13.97259955]
[1743428092249,38.07523722,123.9,123.79,5.8396]
[1743428092553,347.36,123.91,123.81,38.07523722]
[1743428093259,43.06131425,123.96,123.87,38.07523722]
[1743428093453,43.06131425,123.96,123.88,56.76]
[1743428093760,43.06131425,123.96,123.91,0.05548797]
[1743428093761,0.05652629,123.93,123.91,0.05548797]
[1743428095458,10.76532856,123.95,123.91,38.13072519]
[1743428095860,139.85310651,123.98,123.91,38.13072519]
[1743428095861,8.0673,123.98,123.91,38.13072519]
[1743428096056,8.0673,123.98,123.92,8.0707]
[1743428096257,38.07523722,124.08,123.93,56.3]
[1743428096453,56.26,124.05,123.93,56.3]
[1743428096651,0.05836694,123.99,123.96,0.05141195]
[1743428098057,3.08,124.05,123.96,0.05141195]
[1743428098261,328.57523722,124.08,123.97,38.07523722]
[1743428098458,328.57523722,124.08,123.98,56.0]
[1743428098764,8.0627,124.05,123.98,64.0669]
[1743428098966,328.57523722,124.08,123.98,64.0669]
[1743428099260,38.07523722,124.06,123.98,56.0]
[1743428099466,0.05469133,124.04,124.02,0.05316443]
[1743428099864,8.11849133,124.04,124.02,0.05316443]
[1743428100265,0.05469133,124.04,124.02,0.05316443]
[1743428101367,38.07523722,124.12,124.03,55.82]
[1743428101967,8.0611,124.08,124.03,55.82]
[1743428102263,38.07523722,124.12,124.03,55.82]
[1743428102467,8.0615,124.07,124.03,55.82]
[1743428102662,0.05692553,124.07,124.04,0.05767777]
[1743428103763,38.07523722,124.06,123.98,3.1066]
[1743428105073,0.05999424,124.03,124.01,0.05792639]
[1743428105371,38.07523722,124.02,123.94,59.4011]
[1743428106166,8.0652,124.02,123.96,8.0679]
[1743428106369,362.0,124.07,123.97,38.07523722]
[1743428106570,0.06166849,124.0,123.98,0.05934845]
[1743428106768,8.0645,124.03,123.99,56.24]
[1743428106961,38.07523722,124.07,123.99,56.24]
[1743428107161,38.07523722,124.09,123.99,56.24]
[1743428107368,290.26,124.11,123.99,94.31523722]
[1743428107564,328.33523722,124.11,124.01,38.07523722]
[1743428107767,8.0611,124.08,124.04,8.0632]
[1743428107970,328.33523722,124.11,124.0,6.1412]
[1743428108368,0.05397574,124.07,124.04,0.05415047]
[1743428108569,0.05397574,124.07,124.04,56.19415047]
[1743428108868,329.92593223,124.17,124.05,38.07523722]
[1743428109071,1.61069501,124.17,124.07,38.07523722]
[1743428109273,1.61069501,124.17,124.08,3.2976]
[1743428109564,1.61069501,124.17,124.09,94.21523722]
[1743428110070,0.0618759,124.14,124.12,0.05355344]
[1743428111567,8.0575,124.13,124.12,0.05355344]
[1743428112369,8.1188759,124.14,124.12,0.05355344]
[1743428112570,0.0618759,124.14,124.12,0.05355344]
[1743428114268,8.0575,124.13,124.12,0.05355344]
[1743428114475,0.0618759,124.14,124.12,0.05355344]
[1743428116276,8.0575,124.13,124.12,0.05355344]
[1743428116976,0.0618759,124.14,124.12,0.05355344]
[1743428117974,8.0575,124.13,124.12,0.05355344]
[1743428118771,8.1189759,124.14,124.12,0.05355344]
[1743428118972,0.0618759,124.14,124.12,0.05355344]
[1743428119275,8.0575,124.13,124.12,0.05355344]
[1743428119573,0.0618759,124.14,124.12,0.05355344]
[1743428119770,3.2092,124.22,124.13,38.07523722]
[1743428119971,41.28923722,124.24,124.14,55.48]
[1743428120771,41.28923722,124.24,124.15,8.056]
[1743428120976,0.06076923,124.2,124.18,0.05929857]
[1743428121475,58.6892,124.27,124.18,0.05929857]
[1743428121476,3.2092,124.27,124.18,0.05929857]
[1743428121672,41.28443722,124.27,124.18,0.05929857]
[1743428121866,328.05523722,124.29,124.19,93.35523722]
[1743428122277,38.07523722,124.29,124.19,93.35523722]
[1743428122573,442.853717,124.33,124.23,38.07523722]
[1743428122787,442.853717,124.33,124.25,38.07523722]
[1743428122974,442.853717,124.33,124.27,8.0479]
[1743428123170,442.853717,124.33,124.27,38.07523722]
[1743428123368,221.3639528,124.33,124.3,8.046]
[1743428123573,216.7316528,124.33,124.31,55.52]
[1743428124082,216.78933653,124.33,124.31,55.57321582]
[1743428124385,0.05768373,124.33,124.23,38.07523722]
[1743428124575,3.1864,124.32,124.24,57.00723266]
[1743428124775,3.1864,124.32,124.24,55.54]
[1743428124776,41.30603722,124.31,124.24,55.54]
[1743428124974,3.2308,124.31,124.24,55.54]
[1743428125480,3.2308,124.31,124.25,62.0]
[1743428125682,0.05996028,124.29,124.26,0.05812194]
[1743428125975,0.05996028,124.29,124.27,38.07523722]
[1743428126372,0.01066028,124.29,124.27,38.07523722]
[1743428126681,6.4172,124.38,124.28,1.46685337]
[1743428126881,6.4172,124.38,124.31,38.07523722]
[1743428127175,6.4172,124.38,124.29,93.53523722]
[1743428127373,6.4172,124.38,124.29,55.46]
[1743428127574,8.0468,124.3,124.25,93.59523722]
[1743428127775,38.07523722,124.33,124.23,55.5]
[1743428127972,38.07523722,124.31,124.23,55.5]
[1743428128180,6.1677,124.3,124.23,55.5]
[1743428128377,6.1677,124.3,124.21,289.78]
[1743428128775,38.07523722,124.29,124.21,289.78]
[1743428128987,0.05386062,124.27,124.24,0.05886718]
[1743428132585,8.10256062,124.27,124.24,0.05886718]
[1743428132779,38.12909784,124.27,124.24,0.05886718]
[1743428133088,38.12909784,124.27,124.16,55.3]
[1743428133385,38.12909784,124.27,124.17,8.0548]
[1743428133386,38.07523722,124.27,124.17,8.0548]
[1743428133580,6.1677,124.3,124.17,38.07523722]
[1743428133786,6.1677,124.3,124.21,38.07523722]
[1743428134084,0.0581603,124.27,124.24,0.05669182]
[1743428134483,0.0581603,124.27,124.25,38.07523722]
[1743428134686,0.00734916,124.27,124.26,8.049]
[1743428135077,6.3344,124.34,124.25,38.07523722]
[1743428135276,6.3344,124.34,124.25,46.12463722]
[1743428135584,3.2152,124.36,124.27,38.07523722]
[1743428135781,3.2152,124.36,124.29,38.07523722]
[1743428135985,3.2152,124.36,124.28,55.98]
[1743428135986,3.2152,124.36,124.3,62.0]
[1743428136187,0.05990045,124.34,124.31,0.05788734]
[1743428136481,0.05990045,124.34,124.31,38.13312456]
[1743428137288,0.01190045,124.34,124.33,38.07523722]
[1743428137587,56.52,124.5,124.33,452.51523722]
[1743428137793,9.3025,124.49,124.39,38.07523722]
[1743428138092,9.3025,124.49,124.4,56.52]
[1743428138580,0.05627559,124.46,124.43,0.05905898]
[1743428138986,8.0374,124.44,124.43,0.05905898]
[1743428139180,38.07523722,124.44,124.33,358.0]
[1743428139383,38.07523722,124.44,124.33,452.41523722]
[1743428139580,8.0395,124.41,124.33,452.41523722]
[1743428139883,38.07523722,124.44,124.35,38.07523722]
[1743428140085,8.0385,124.43,124.35,46.11803722]
[1743428140286,0.05291628,124.41,124.38,0.05423218]
[1743428140591,0.05291628,124.41,124.38,62.05423218]
[1743428140782,0.05291628,124.41,124.38,0.05423218]
[1743428142286,0.05291628,124.41,124.38,55.91423218]
[1743428142990,8.0401,124.4,124.38,0.05423218]
[1743428143179,0.05291628,124.41,124.38,0.05423218]
[1743428143380,3.2284,124.4,124.38,0.05423218]
[1743428143584,8.0406,124.39,124.38,0.05423218]
[1743428144184,3.2284,124.4,124.38,0.05423218]
[1743428144584,0.05291628,124.41,124.38,0.05423218]
[1743428145393,9.477,124.48,124.4,38.07523722]
[1743428146000,47.55223722,124.48,124.37,345.64]
[1743428146287,8.0388,124.42,124.37,345.64]
[1743428146487,38.07523722,124.46,124.37,345.64]
[1743428146686,0.05621712,124.41,124.38,38.12934547]
[1743428146892,8.0371,124.45,124.4,38.07523722]
[1743428147090,0.05509614,124.41,124.4,38.07523722]
[1743428147395,38.07523722,124.5,124.37,345.64]
[1743428147396,8.0391,124.42,124.37,345.64]
[1743428147595,0.05336891,124.42,124.39,0.06170433]
[1743428147891,8.04,124.4,124.39,0.06170433]
[1743428148789,8.0396,124.41,124.39,0.06170433]
[1743428148991,0.05336891,124.42,124.39,0.06170433]
[1743428149396,8.04,124.4,124.39,0.06170433]
[1743428149692,0.05336891,124.42,124.39,0.06170433]
[1743428149889,8.04,124.4,124.39,0.06170433]
[1743428151488,0.05336891,124.42,124.39,0.06170433]
[1743428151797,0.05336891,124.42,124.4,8.0396]
[1743428151990,0.05336891,124.42,124.39,0.06170433]
[1743428152593,8.0397,124.41,124.39,0.06170433]
[1743428152796,0.05336891,124.42,124.39,0.06170433]
[1743428153992,8.04,124.4,124.39,0.06170433]
[1743428154486,0.05336891,124.42,124.39,0.06170433]
[1743428156097,0.05336891,124.42,124.41,8.0393]
[1743428156291,0.05336891,124.42,124.39,0.06170433]
[1743428157895,38.12860613,124.42,124.34,0.48814]
[1743428158102,38.07523722,124.4,124.34,0.48814]
[1743428158292,6.3274,124.41,124.35,119.08333915]
[1743428159197,8.0413,124.38,124.37,0.05842772]
[1743428159395,0.05698084,124.39,124.35,119.08333915]
[1743428159998,0.05698084,124.39,124.34,0.48814]
[1743428160502,38.07523722,124.38,124.28,87.48847578]
[1743428160696,38.07523722,124.36,124.28,87.48847578]
[1743428160899,8.0446,124.33,124.29,62.0]
[1743428161098,74.8103,124.41,124.29,62.0]
[1743428161293,38.07523722,124.36,124.29,62.0]
[1743428161503,8.0453,124.32,124.29,62.0]
[1743428161705,8.0453,124.32,124.31,0.05712379]
[1743428161902,38.13542378,124.34,124.28,87.48847578]
[1743428162101,3.0935,124.33,124.24,470.223713]
[1743428162397,3.3447,124.35,124.26,38.07523722]
[1743428162602,3.3447,124.35,124.28,38.07523722]
[1743428162899,3.3447,124.35,124.29,55.2]
[1743428163203,0.05984527,124.33,124.3,0.05381814]
[1743428163403,0.05984527,124.33,124.32,8.0452]
[1743428163593,8.0422,124.37,124.3,0.05482215]
[1743428163798,0.05530125,124.33,124.3,0.05482215]
[1743428164104,0.05530125,124.33,124.29,55.2]
[1743428164403,0.05530125,124.33,124.3,0.05856641]
[1743428164608,0.05530125,124.33,124.32,8.0452]
[1743428164800,327.37523722,124.44,124.32,38.07523722]
[1743428164998,6.2608,124.43,124.32,100.07523722]
[1743428165203,8.041,124.39,124.35,8.043]
[1743428165409,38.07523722,124.42,124.32,62.0]
[1743428165614,38.07523722,124.42,124.32,70.0447]
[1743428165907,0.05324705,124.38,124.36,0.05890719]
[1743428166107,38.07523722,124.42,124.36,0.05890719]
[1743428166409,0.05407036,124.38,124.36,0.05890719]
[1743428166607,6.2608,124.43,124.36,0.05890719]
[1743428166808,0.05838395,124.38,124.36,8.10110719]
[1743428167013,38.07523722,124.4,124.36,0.05890719]
[1743428167308,8.0419,124.37,124.36,0.05890719]
[1743428167508,0.05787895,124.38,124.32,62.0]
[1743428167711,38.13311617,124.38,124.32,62.0]
[1743428168306,38.13311617,124.38,124.3,54.76]
[1743428168508,38.07523722,124.38,124.33,0.05237107]
[1743428168706,0.06070729,124.35,124.33,0.05237107]
[1743428168906,8.0439,124.34,124.33,0.05237107]
[1743428169311,0.06070729,124.35,124.33,0.05237107]
[1743428169511,0.06070729,124.35,124.34,8.0439]
[1743428169713,0.06070729,124.35,124.33,0.05237107]
[1743428170105,3.0959,124.42,124.33,38.12760829]
[1743428170302,3.0959,124.42,124.36,38.07523722]
[1743428170508,38.07523722,124.5,124.38,38.07523722]
[1743428170808,38.07523722,124.44,124.37,55.3]
[1743428171016,3.1187,124.43,124.33,56.3076]
[1743428171207,3.3461,124.42,124.34,149.48847578]
[1743428171411,0.06103824,124.39,124.37,0.05769739]
[1743428171611,0.06103824,124.39,124.34,87.48847578]
[1743428172513,0.06103824,124.39,124.34,180.903713]
[1743428172914,0.06103824,124.39,124.35,0.05592424]
[1743428173217,0.06103824,124.39,124.38,8.0413]
[1743428173813,3.1968,124.46,124.42,8.0384]
[1743428174017,3.1968,124.46,124.4,38.07523722]
[1743428174221,6.2471,124.49,124.4,38.07523722]
[1743428174413,6.2471,124.49,124.4,100.07523722]
[1743428175019,0.05650855,124.46,124.43,0.05896075]
[1743428175317,0.05650855,124.46,124.44,93.21523722]
[1743428175713,9.6913,124.54,124.44,93.21523722]
[1743428176214,38.07523722,124.51,124.44,55.14]
[1743428176420,38.07523722,124.53,124.44,55.14]
[1743428176616,9.6913,124.54,124.44,55.14]
[1743428176822,9.6913,124.54,124.47,38.07523722]
[1743428177014,0.05418848,124.5,124.48,0.06081834]
[1743428177418,8.0287,124.58,124.49,93.29523722]
[1743428177716,38.07523722,124.57,124.49,55.22]
[1743428177913,38.07523722,124.55,124.46,8.0357]
[1743428178113,38.07523722,124.55,124.45,93.21523722]
[1743428178319,38.07523722,124.55,124.47,8.035]
[1743428178515,0.05791277,124.51,124.49,0.05923458]
[1743428178720,93.21523722,124.57,124.46,62.0]
[1743428178920,0.05516723,124.51,124.49,0.05714643]
[1743428179121,38.07523722,124.55,124.45,55.14]
[1743428179322,0.06199935,124.51,124.49,0.06096979]
[1743428179513,0.06199935,124.51,124.45,55.14]
[1743428179714,0.06199935,124.51,124.45,93.21523722]
[1743428180124,0.06199935,124.51,124.47,38.07523722]
[1743428180622,0.06199935,124.51,124.48,0.05989073]
[1743428181632,0.06199935,124.51,124.49,38.07523722]
[1743428182231,0.06199935,124.51,124.5,8.0335]
[1743428182433,3.1003,124.6,124.5,54.66]
[1743428182727,6.3617,124.6,124.51,38.07523722]
[1743428182932,6.3617,124.6,124.53,38.07523722]
[1743428183330,8.0283,124.59,124.53,46.10653722]
[1743428183528,3.2614,124.6,124.51,38.07523722]
[1743428183730,0.05940356,124.57,124.55,0.05792943]
[1743428184427,0.05940356,124.57,124.55,8.08802943]
[1743428184629,0.05940356,124.57,124.55,0.05792943]
[1743428184931,0.05940356,124.57,124.55,8.08782943]
[1743428185134,0.05940356,124.57,124.55,0.05792943]
[1743428186124,0.05940356,124.57,124.56,8.0297]
[1743428186330,6.3836,124.64,124.56,38.07523722]
[1743428186537,6.3836,124.64,124.6,8.0267]
[1743428186735,3.3102,124.68,124.58,38.07523722]
[1743428186927,3.3102,124.68,124.57,54.94]
[1743428187133,8.0233,124.66,124.61,8.026]
[1743428187335,3.3102,124.68,124.58,38.07523722]
[1743428187536,0.05574921,124.65,124.62,0.05733227]
[1743428191335,38.13098643,124.65,124.62,0.05733227]
[1743428191539,6.6095,124.64,124.62,0.05733227]
[1743428192943,14.6345,124.64,124.62,0.05733227]
[1743428193139,0.05574921,124.65,124.62,0.05733227]
[1743428193641,0.05574921,124.65,124.64,8.0245]
[1743428194041,0.05574921,124.65,124.63,8.0248]
[1743428194234,0.05574921,124.65,124.62,0.05733227]
[1743428195436,0.05574921,124.65,124.64,8.0245]
[1743428195939,38.07523722,124.74,124.64,38.07523722]
[1743428196240,47.47783722,124.74,124.64,38.07523722]
[1743428196437,9.4026,124.74,124.65,62.0]
[1743428197038,0.06086911,124.71,124.68,0.05533749]
[1743428198144,0.06086911,124.71,124.68,53.75533749]
[1743428198343,0.06086911,124.71,124.68,91.83057471]
[1743428198545,0.06086911,124.71,124.68,99.85217471]
[1743428198741,0.06086911,124.71,124.68,53.75533749]
[1743428201638,8.08126911,124.71,124.68,53.75533749]
[1743428201939,0.06086911,124.71,124.68,53.75533749]
[1743428202243,0.06086911,124.71,124.69,8.0212]
[1743428202845,0.06086911,124.71,124.68,53.75533749]
[1743428203845,8.0213,124.69,124.68,0.05533749]
[1743428204347,8.021,124.7,124.68,0.05533749]
[1743428204648,0.06086911,124.71,124.68,0.05533749]
[1743428205348,0.06086911,124.71,124.68,8.07703749]
[1743428205742,0.06086911,124.71,124.68,0.05533749]
[1743428205948,0.06086911,124.71,124.68,38.13057471]
[1743428206543,0.06086911,124.71,124.69,8.0207]
[1743428206750,0.06086911,124.71,124.68,38.13057471]
[1743428207549,0.06086911,124.71,124.7,8.0206]
[1743428208141,0.06086911,124.71,124.69,8.021]
[1743428208347,0.06086911,124.71,124.68,0.05533749]
[1743428208747,0.06086911,124.71,124.7,8.0206]
[1743428209749,0.06086911,124.71,124.68,0.05533749]
[1743428210151,0.06086911,124.71,124.7,8.0206]
[1743428210352,0.06086911,124.71,124.68,0.05533749]
[1743428210652,8.0212,124.7,124.63,52.58]
[1743428210840,6.1648,124.74,124.63,52.58]
[1743428210841,16.0207,124.87,124.67,16.0444]
[1743428211048,3.1087,124.8,124.73,23.31837275]
[1743428211453,3.1087,124.8,124.78,8.0151]
[1743428211648,3.1087,124.8,124.78,8.06956193]
[1743428211855,52.46,124.93,124.79,23.31837275]
[1743428212051,3.1087,124.87,124.79,23.31837275]
[1743428212252,3.1087,124.87,124.78,52.52]
[1743428212452,3.1807,124.86,124.78,52.52]
[1743428212648,3.1807,124.86,124.75,75.71837275]
[1743428212847,3.1807,124.86,124.78,8.015]
[1743428213052,0.0558135,124.82,124.79,0.05795442]
[1743428213455,0.0558135,124.82,124.79,8.07225442]
[1743428213651,0.0558135,124.82,124.79,0.05795442]
[1743428215053,8.0690135,124.82,124.79,0.05795442]
[1743428215255,0.0558135,124.82,124.72,177.66192594]
[1743428215452,90.17345016,124.83,124.77,8.0158]
[1743428215650,52.32,124.83,124.72,177.66192594]
[1743428215849,52.32,124.83,124.74,37.85345016]
[1743428216059,8.0133,124.82,124.76,8.0164]
[1743428216358,8.0133,124.82,124.78,0.05341456]
[1743428216359,0.0613286,124.8,124.78,0.05341456]
[1743428217956,0.0613286,124.8,124.78,8.06881456]
[1743428218253,0.0613286,124.8,124.78,0.05341456]
[1743428218451,0.0613286,124.8,124.74,70.0177]
[1743428218659,0.0613286,124.8,124.74,8.0177]
[1743428218852,8.0149,124.79,124.74,8.0177]
[1743428219060,6.533,124.79,124.75,8.0174]
[1743428219358,89.57345016,124.85,124.74,37.85345016]
[1743428219560,0.05982162,124.78,124.77,8.0157]
[1743428219759,8.013,124.82,124.76,0.05841897]
[1743428219958,0.05468354,124.79,124.77,8.0158]
[1743428220255,0.05468354,124.79,124.78,0.0610065]
[1743428220759,3.2954,124.83,124.78,0.0610065]
[1743428220954,3.1741,124.86,124.78,37.91445666]
[1743428221157,403.14885016,124.91,124.8,37.85345016]
[1743428221353,8.0114,124.85,124.78,37.85345016]
[1743428221558,3.1741,124.9,124.8,37.85345016]
[1743428221752,0.06137646,124.83,124.8,37.90696555]
[1743428221957,0.06137646,124.83,124.8,37.85345016]
[1743428222262,0.0514297,124.83,124.8,37.90775029]
[1743428222661,0.0514297,124.83,124.8,0.05430013]
[1743428223861,0.0514297,124.83,124.8,8.06820013]
[1743428224163,0.0514297,124.83,124.8,0.05430013]
[1743428225265,37.90487986,124.83,124.75,87.48847578]
[1743428225462,6.4374,124.82,124.75,87.48847578]
[1743428225859,8.0159,124.78,124.75,87.48847578]
[1743428226060,6.4374,124.82,124.75,87.48847578]
[1743428226270,8.0143,124.8,124.75,87.48847578]
[1743428226565,0.05995608,124.8,124.77,0.05925239]
[1743428227863,8.0155,124.78,124.77,0.05925239]
[1743428228468,8.0153,124.79,124.77,0.05925239]
[1743428228767,0.05995608,124.8,124.77,0.05925239]
[1743428230666,0.05995608,124.8,124.72,51.28]
[1743428230865,37.85345016,124.78,124.7,140.10102695]
[1743428231064,37.85345016,124.71,124.7,124.92642695]
[1743428231270,37.85345016,124.71,124.7,114.80582695]
[1743428231570,51.02,124.73,124.7,114.80582695]
[1743428231769,0.0594476,124.72,124.7,114.80582695]
[1743428232063,8.0206,124.7,124.69,105.16662032]
[1743428232272,37.85345016,124.7,124.69,118.89924678]
[1743428232468,45.87345016,124.7,124.68,79.58251556]
[1743428232663,296.4413,124.69,124.68,79.58251556]
[1743428232869,362.0,124.68,124.65,310.18522564]
[1743428233068,37.85345016,124.67,124.65,310.18522564]
[1743428233267,326.27345016,124.69,124.65,310.18522564]
[1743428233475,0.06085551,124.67,124.65,310.23656734]
[1743428233971,8.0232,124.66,124.65,310.23656734]
[1743428234166,8.0232,124.66,124.65,0.0513417]
[1743428234867,250.46713975,124.67,124.65,0.0513417]
[1743428235665,301.3445946,124.66,124.65,0.0513417]
[1743428235871,309.3677946,124.66,124.65,0.0513417]
[1743428236265,309.3677946,124.66,124.65,4.17e-05]
[1743428236669,317.3877946,124.66,124.65,4.17e-05]
[1743428237070,309.3677946,124.66,124.65,4.17e-05]
[1743428237466,272.9578505,124.66,124.65,4.17e-05]
[1743428237671,63.43415433,124.66,124.65,4.17e-05]
[1743428238473,71.45735433,124.66,124.65,4.17e-05]
[1743428241368,405.93080449,124.66,124.65,4.17e-05]
[1743428241775,8.0277,124.59,124.58,3.221]
[1743428241975,37.85345016,124.64,124.58,3.221]
[1743428242273,352.03415433,124.66,124.58,3.221]
[1743428242477,352.03415433,124.66,124.59,87.97345016]
[1743428242776,352.03415433,124.66,124.59,91.20425016]
[1743428242973,0.05146344,124.64,124.61,8.08333027]
[1743428243169,0.05146344,124.64,124.61,0.05733027]
[1743428243475,0.05146344,124.64,124.62,62.0]
[1743428243774,63.43415433,124.66,124.62,62.0]
[1743428244276,53.30295433,124.66,124.63,37.85345016]
[1743428244478,48.23785433,124.66,124.63,37.85345016]
[1743428244684,48.23785433,124.66,124.61,37.91078043]
[1743428245287,0.05113652,124.65,124.61,0.05733027]
[1743428245476,3.12683652,124.65,124.61,0.05733027]
[1743428245676,8.07503652,124.65,124.61,0.05733027]
[1743428245875,0.05113652,124.65,124.61,0.05733027]
[1743428246080,8.0245,124.64,124.61,0.05733027]
[1743428246275,0.05113652,124.65,124.61,0.05733027]
[1743428247184,8.0258,124.62,124.61,0.05733027]
[1743428247678,8.0258,124.62,124.61,3.027e-05]
[1743428248183,53.89925016,124.62,124.61,3.027e-05]
[1743428248379,57.14565016,124.62,124.61,3.027e-05]
[1743428248578,11.2722,124.62,124.61,3.027e-05]
[1743428248780,49.12565016,124.62,124.61,3.027e-05]
[1743428249283,57.14565016,124.62,124.61,3.027e-05]
[1743428250582,86.97330032,124.62,124.51,3.0798]
[1743428250883,37.85345016,124.59,124.51,3.0798]
[1743428251077,49.28,124.58,124.51,3.0798]
[1743428251686,0.05699577,124.56,124.53,0.06078365]
[1743428252390,37.85345016,124.55,124.46,6.3996]
[1743428252591,49.12,124.54,124.49,1.60655474]
[1743428252889,8.0332,124.51,124.49,10.60655474]
[1743428253184,8.0335,124.5,124.49,10.60655474]
[1743428253491,49.12,124.54,124.49,10.60655474]
[1743428253689,0.05179093,124.51,124.49,10.60655474]
[1743428253988,8.0335,124.5,124.49,10.60655474]
[1743428254387,0.05179093,124.51,124.49,9.0]
[1743428255291,288.8,124.56,124.49,46.85345016]